[Event "Torneo Nuevo Centro. Jornada 8"]
[Site "Chess.com"]
[Date "2020.08.07"]
[Round "4"]
[White "Sos Andreu, Eric"]
[Black "Gil López, Alejandro"]
[Result "1-0"]
[WhiteElo "2550"]
[BlackElo "2208"]
[TimeControl "180+2"]
[EndTime "11:11:53 PDT"]
[Termination "Victoria de ericovski por abandono"]

1. d4 {[%clk 0:03:01.9]} 1... e5 {[%clk 0:02:56.7]} 2. dxe5 {[%clk 0:03:02.5]}
2... d6 {[%clk 0:02:58.3]} 3. Bf4 {[%clk 0:03:03.4]} 3... Nc6 {[%clk 0:02:58.4]}
4. Nf3 {[%clk 0:03:03.7]} 4... Bg4 {[%clk 0:02:58.3]} 5. Nbd2 {[%clk 0:03:00.1]}
5... h6 {[%clk 0:02:42.8]} 6. h3 {[%clk 0:02:57.7]} 6... dxe5 {[%clk 0:02:35]}
7. Nxe5 {[%clk 0:02:54.3]} 7... Nxe5 {[%clk 0:02:33.7]} 8. Bxe5 {[%clk
0:02:56.2]} 8... Be6 {[%clk 0:02:31.6]} 9. Nf3 {[%clk 0:02:53.5]} 9... Qe7
{[%clk 0:02:27.6]} 10. e3 {[%clk 0:02:45.4]} 10... Rd8 {[%clk 0:02:25.2]} 11.
Bd3 {[%clk 0:02:38.5]} 11... Nf6 {[%clk 0:02:21.4]} 12. O-O {[%clk 0:02:36]}
12... g6 {[%clk 0:02:08.7]} 13. Qd2 {[%clk 0:01:52.2]} 13... Bg7 {[%clk
0:02:05.7]} 14. Qc3 {[%clk 0:01:49.7]} 14... Nd5 {[%clk 0:02:04]} 15. Qd4 {[%clk
0:01:43.1]} 15... Bxe5 {[%clk 0:02:02.5]} 16. Qxe5 {[%clk 0:01:42.3]} 16... O-O
{[%clk 0:02:03.3]} 17. a3 {[%clk 0:01:29.7]} 17... Qd6 {[%clk 0:01:58.8]} 18.
Qxd6 {[%clk 0:01:30.4]} 18... Rxd6 {[%clk 0:01:59.7]} 19. Rad1 {[%clk 0:01:31]}
19... Rfd8 {[%clk 0:01:55.3]} 20. Be2 {[%clk 0:01:31.7]} 20... Nf6 {[%clk
0:01:52.3]} 21. Rxd6 {[%clk 0:01:32.1]} 21... Rxd6 {[%clk 0:01:52.8]} 22. Rd1
{[%clk 0:01:33.6]} 22... Rxd1+ {[%clk 0:01:53.8]} 23. Bxd1 {[%clk 0:01:35.5]}
23... Bf5 {[%clk 0:01:48.1]} 24. Nd4 {[%clk 0:01:35.8]} 24... Bd7 {[%clk
0:01:46.8]} 25. f3 {[%clk 0:01:30.2]} 25... Kf8 {[%clk 0:01:45.5]} 26. e4 {[%clk
0:01:30.3]} 26... Ke7 {[%clk 0:01:46.3]} 27. Kf2 {[%clk 0:01:31.5]} 27... c5
{[%clk 0:01:44.5]} 28. Ne2 {[%clk 0:01:29.3]} 28... b6 {[%clk 0:01:45.4]} 29.
Nc3 {[%clk 0:01:21.8]} 29... Kd6 {[%clk 0:01:45.6]} 30. Ke3 {[%clk 0:01:21.5]}
30... Nh5 {[%clk 0:01:39.5]} 31. f4 {[%clk 0:01:20.8]} 31... Ng7 {[%clk
0:01:39.9]} 32. g4 {[%clk 0:01:16.2]} 32... Ne6 {[%clk 0:01:36.3]} 33. e5+
{[%clk 0:01:12.2]} 33... Ke7 {[%clk 0:01:37.6]} 34. Ne4 {[%clk 0:01:11.9]} 34...
Bc6 {[%clk 0:01:26.4]} 35. c3 {[%clk 0:01:10.5]} 35... g5 {[%clk 0:01:24.2]} 36.
fxg5 {[%clk 0:01:07]} 36... hxg5 {[%clk 0:01:25.2]} 37. Bb3 {[%clk 0:00:53]}
37... Bxe4 {[%clk 0:00:51.5]} 38. Kxe4 {[%clk 0:00:54.9]} 38... b5 {[%clk
0:00:52.9]} 39. Bxe6 {[%clk 0:00:41.8]} 39... Kxe6 {[%clk 0:00:54.8]} 40. b3
{[%clk 0:00:35.5]} 40... a5 {[%clk 0:00:51.2]} 41. b4 {[%clk 0:00:24.1]} 41...
axb4 {[%clk 0:00:48.1]} 42. axb4 {[%clk 0:00:24.7]} 42... cxb4 {[%clk
0:00:48.3]} 43. cxb4 {[%clk 0:00:25.7]} 1

[Event "Torneo Nuevo Centro. Jornada 8"]
[Site "Chess.com"]
[Date "2020.08.07"]
[Round "4"]
[White "Aymerich Rosell, Pablo"]
[Black "Luque Saiz, Andrés"]
[Result "0-1"]
[WhiteElo "1952"]
[BlackElo "2014"]
[TimeControl "180+2"]
[EndTime "11:11:53 PDT"]
[Termination "Victoria de Chuch1n por abandono"]

1. e4 {[%clk 0:03:01.9]} 1... c6 {[%clk 0:03:01.2]} 2. d4 {[%clk 0:03:00.7]}
2... d5 {[%clk 0:03:03.1]} 3. e5 {[%clk 0:03:01.7]} 3... c5 {[%clk 0:03:04.1]}
4. dxc5 {[%clk 0:03:02.5]} 4... e6 {[%clk 0:03:04.7]} 5. a3 {[%clk 0:03:02.7]}
5... Bxc5 {[%clk 0:03:05.2]} 6. Bd3 {[%clk 0:03:02.8]} 6... Ne7 {[%clk
0:03:01.6]} 7. Nf3 {[%clk 0:03:03.2]} 7... Ng6 {[%clk 0:03:01.6]} 8. O-O {[%clk
0:03:03.3]} 8... Qc7 {[%clk 0:02:55.5]} 9. b4 {[%clk 0:02:54.5]} 9... Be7 {[%clk
0:02:44.1]} 10. Bb2 {[%clk 0:02:45.9]} 10... a5 {[%clk 0:02:43.9]} 11. b5 {[%clk
0:02:44.2]} 11... Nf4 {[%clk 0:02:35.4]} 12. Nbd2 {[%clk 0:02:31.9]} 12... Nxd3
{[%clk 0:02:24.6]} 13. cxd3 {[%clk 0:02:32.3]} 13... a4 {[%clk 0:02:23.5]} 14.
Rc1 {[%clk 0:02:25.6]} 14... Qd8 {[%clk 0:02:23.6]} 15. Nd4 {[%clk 0:02:05.6]}
15... Nd7 {[%clk 0:02:17]} 16. f4 {[%clk 0:02:03.8]} 16... O-O {[%clk 0:02:06]}
17. Kh1 {[%clk 0:02:03.4]} 17... Nc5 {[%clk 0:01:59.5]} 18. Qf3 {[%clk
0:01:50.9]} 18... Bd7 {[%clk 0:01:52.3]} 19. f5 {[%clk 0:01:33.2]} 19... exf5
{[%clk 0:01:30]} 20. Nxf5 {[%clk 0:01:24.4]} 20... Bxb5 {[%clk 0:00:35.1]} 21.
Nxg7 {[%clk 0:01:06.9]} 21... Kxg7 {[%clk 0:00:26.4]} 22. e6+ {[%clk 0:01:04.6]}
22... f6 {[%clk 0:00:25]} 23. Qh5 {[%clk 0:00:40.2]} 23... Nxd3 {[%clk
0:00:21.9]} 24. Rc3 {[%clk 0:00:30.1]} 24... Qe8 {[%clk 0:00:22]} 25. Qh4 {[%clk
0:00:21.1]} 25... Nxb2 {[%clk 0:00:20.5]} 26. Rg3+ {[%clk 0:00:19.4]} 26... Kh8
{[%clk 0:00:20.8]} 27. Rh3 {[%clk 0:00:18.9]} 27... Qg6 {[%clk 0:00:21.8]} 28.
Rff3 {[%clk 0:00:17.2]} 28... Rac8 {[%clk 0:00:21]} 29. Nf1 {[%clk 0:00:15.8]}
29... Rc1 {[%clk 0:00:20.9]} 30. Qf2 {[%clk 0:00:15.2]} 30... Rxf1+ {[%clk
0:00:21.3]} 31. Qxf1 {[%clk 0:00:16.3]} 31... Bxf1 {[%clk 0:00:23.2]} 32. Rxf1
{[%clk 0:00:17.3]} 32... Nc4 {[%clk 0:00:25.1]} 33. Rg3 {[%clk 0:00:18.3]} 33...
Qe4 {[%clk 0:00:25.3]} 34. Rgf3 {[%clk 0:00:17.9]} 34... Qxe6 {[%clk 0:00:26.2]}
35. h3 {[%clk 0:00:18]} 35... Nd2 {[%clk 0:00:27.2]} 0

[Event "Torneo Nuevo Centro. Jornada 8"]
[Site "Chess.com"]
[Date "2020.08.07"]
[Round "4"]
[White "Rodriguez Rodriguez, Joan David "]
[Black "Yuste Valenzuela, Alejandro"]
[Result "1/2-1/2"]
[WhiteElo "1715"]
[BlackElo "1871"]
[TimeControl "180+2"]
[EndTime "11:11:58 PDT"]
[Termination "Partida en tablas por mutuo acuerdo"]

1. d4 {[%clk 0:03:01.9]} 1... Nf6 {[%clk 0:03:00.4]} 2. c4 {[%clk 0:03:02.4]}
2... g6 {[%clk 0:03:01.6]} 3. Nc3 {[%clk 0:03:03.2]} 3... Bg7 {[%clk 0:03:03.1]}
4. e4 {[%clk 0:03:04.3]} 4... d6 {[%clk 0:03:04.5]} 5. Nf3 {[%clk 0:03:05.7]}
5... O-O {[%clk 0:03:05.9]} 6. Be2 {[%clk 0:03:06.7]} 6... e5 {[%clk 0:03:06.8]}
7. dxe5 {[%clk 0:03:08.6]} 7... dxe5 {[%clk 0:03:07.8]} 8. Qxd8 {[%clk
0:03:10.5]} 8... Rxd8 {[%clk 0:03:09.1]} 9. Bg5 {[%clk 0:03:12.1]} 9... Re8
{[%clk 0:03:08.9]} 10. O-O {[%clk 0:03:12.7]} 10... c6 {[%clk 0:03:08.4]} 11.
Rad1 {[%clk 0:03:12.9]} 11... h6 {[%clk 0:03:08.8]} 12. Bh4 {[%clk 0:03:13.3]}
12... g5 {[%clk 0:03:04.9]} 13. Bg3 {[%clk 0:03:13.5]} 13... Nh5 {[%clk
0:03:05.1]} 14. Rfe1 {[%clk 0:03:11]} 14... Nxg3 {[%clk 0:02:56.3]} 15. hxg3
{[%clk 0:03:12.9]} 15... Nd7 {[%clk 0:02:52.9]} 16. Bd3 {[%clk 0:03:04.1]} 16...
a5 {[%clk 0:02:52.5]} 17. a4 {[%clk 0:03:03.4]} 17... Nc5 {[%clk 0:02:53.1]} 18.
Bc2 {[%clk 0:03:04.1]} 18... Be6 {[%clk 0:02:44.1]} 19. b3 {[%clk 0:02:50]}
19... g4 {[%clk 0:02:29.7]} 20. Nh4 {[%clk 0:02:48]} 20... h5 {[%clk 0:02:19.4]}
21. Nf5 {[%clk 0:02:43.1]} 21... Bxf5 {[%clk 0:02:20.6]} 22. exf5 {[%clk
0:02:45]} 22... Rad8 {[%clk 0:01:56.6]} 23. Ne4 {[%clk 0:02:41.3]} 23... Nxe4
{[%clk 0:01:50.3]} 24. Bxe4 {[%clk 0:02:43.2]} 24... Rd4 {[%clk 0:01:50.3]} 25.
Rd3 {[%clk 0:01:32.1]} 25... Rxd3 {[%clk 0:01:35.5]} 26. Bxd3 {[%clk 0:01:32.3]}
26... Rd8 {[%clk 0:01:35.6]} 27. Rd1 {[%clk 0:01:13.9]} 27... Kf8 {[%clk
0:01:06.8]} 28. f3 {[%clk 0:01:12.1]} 28... gxf3 {[%clk 0:00:59.9]} 29. gxf3
{[%clk 0:01:14]} 29... Ke7 {[%clk 0:01:00.3]} 30. Kf2 {[%clk 0:01:11]} 30... Kf6
{[%clk 0:00:44.4]} 31. g4 {[%clk 0:01:11.4]} 31... hxg4 {[%clk 0:00:41]} 32.
fxg4 {[%clk 0:01:13.3]} 32... Bh6 {[%clk 0:00:40.7]} 33. Kf3 {[%clk 0:01:12.7]}
33... Rd4 {[%clk 0:00:37.2]} 34. Be2 {[%clk 0:00:57]} 34... Rxd1 {[%clk
0:00:18.6]} 35. Bxd1 {[%clk 0:00:58.9]} 35... Bd2 {[%clk 0:00:16.8]} 36. Ke4
{[%clk 0:00:59.2]} 36... Bc3 {[%clk 0:00:16.4]} 37. Bc2 {[%clk 0:00:54.4]} 37...
Bd4 {[%clk 0:00:17.1]} 38. Bd1 {[%clk 0:00:55.2]} 38... Kg5 {[%clk 0:00:17.8]}
39. Be2 {[%clk 0:00:56]} 39... f6 {[%clk 0:00:18.9]} 40. Bd1 {[%clk 0:00:56.8]}
40... c5 {[%clk 0:00:18.6]} 41. Be2 {[%clk 0:00:57.7]} 1/2-1

[Event "Torneo Nuevo Centro. Jornada 8"]
[Site "Chess.com"]
[Date "2020.08.07"]
[Round "4"]
[White "Martin Ayala, David"]
[Black "Kovacevic, Slobodan"]
[Result "1-0"]
[WhiteElo "1906"]
[BlackElo "2227"]
[TimeControl "180+2"]
[EndTime "11:12:18 PDT"]
[Termination "Victoria de martinayala por tiempo"]

1. e4 {[%clk 0:03:01.9]} 1... c5 {[%clk 0:02:59.1]} 2. Nc3 {[%clk 0:03:02.5]}
2... e6 {[%clk 0:02:58.8]} 3. Bc4 {[%clk 0:03:00.7]} 3... a6 {[%clk 0:02:57.9]}
4. a4 {[%clk 0:03:01]} 4... Nc6 {[%clk 0:02:57.5]} 5. f4 {[%clk 0:03:01.5]} 5...
Qc7 {[%clk 0:02:55]} 6. Nf3 {[%clk 0:03:00.7]} 6... Qxf4 {[%clk 0:02:53.7]} 7.
d3 {[%clk 0:03:01.4]} 7... Qc7 {[%clk 0:02:52.9]} 8. O-O {[%clk 0:03:01.9]} 8...
Nf6 {[%clk 0:02:51.3]} 9. Qe1 {[%clk 0:02:56.8]} 9... d6 {[%clk 0:02:45.6]} 10.
Qh4 {[%clk 0:02:50.8]} 10... Be7 {[%clk 0:02:41.7]} 11. Bg5 {[%clk 0:02:50.9]}
11... h6 {[%clk 0:02:39.1]} 12. Rae1 {[%clk 0:02:49.8]} 12... Ne5 {[%clk
0:02:33.4]} 13. Nxe5 {[%clk 0:02:47.4]} 13... dxe5 {[%clk 0:02:32.5]} 14. Bxf6
{[%clk 0:02:40.8]} 14... Bxf6 {[%clk 0:02:18.5]} 15. Qg3 {[%clk 0:02:21.8]}
15... b6 {[%clk 0:02:04.8]} 16. Rf3 {[%clk 0:02:22]} 16... Qe7 {[%clk
0:01:51.3]} 17. Ref1 {[%clk 0:02:20.3]} 17... Bd7 {[%clk 0:01:49.7]} 18. Qe1
{[%clk 0:02:07.5]} 18... O-O {[%clk 0:01:43.1]} 19. Ne2 {[%clk 0:02:01.5]} 19...
Bg5 {[%clk 0:01:36]} 20. Ng3 {[%clk 0:01:33.1]} 20... Bxa4 {[%clk 0:00:53.3]}
21. Nh5 {[%clk 0:01:24.8]} 21... Bxc2 {[%clk 0:00:45.4]} 22. Qc3 {[%clk
0:01:19]} 22... Ba4 {[%clk 0:00:34.3]} 23. Qxe5 {[%clk 0:01:19.1]} 23... f6
{[%clk 0:00:28.9]} 24. Bxe6+ {[%clk 0:01:19.1]} 24... Kh8 {[%clk 0:00:28.5]} 25.
Qf5 {[%clk 0:01:11.8]} 25... Be8 {[%clk 0:00:19.4]} 26. Nf4 {[%clk 0:01:00.8]}
26... Bxf4 {[%clk 0:00:15.5]} 27. Rxf4 {[%clk 0:01:01.5]} 27... Bb5 {[%clk
0:00:11.3]} 28. Bd5 {[%clk 0:00:58.1]} 28... Rae8 {[%clk 0:00:09.9]} 29. R1f3
{[%clk 0:00:49.9]} 29... Qe5 {[%clk 0:00:08.7]} 30. Qh3 {[%clk 0:00:45.2]} 30...
Qxb2 {[%clk 0:00:07.7]} 31. Rf2 {[%clk 0:00:40]} 31... Qb1+ {[%clk 0:00:06.4]}
32. Rf1 {[%clk 0:00:38]} 32... Qxd3 {[%clk 0:00:06.4]} 33. R4f3 {[%clk
0:00:34.7]} 33... Qd4+ {[%clk 0:00:05.9]} 34. Kh1 {[%clk 0:00:35.5]} 34... Bxf1
{[%clk 0:00:05.5]} 35. Rxf1 {[%clk 0:00:35.9]} 35... c4 {[%clk 0:00:04.6]} 36.
Rc1 {[%clk 0:00:33.6]} 36... b5 {[%clk 0:00:03.6]} 37. Bb7 {[%clk 0:00:27.7]}
37... f5 {[%clk 0:00:02.8]} 38. Bxa6 {[%clk 0:00:25.5]} 1

[Event "Torneo Nuevo Centro. Jornada 8"]
[Site "Chess.com"]
[Date "2020.08.07"]
[Round "4"]
[White "Chofre Murcia, Adrián"]
[Black "Marques Montolio, Luis"]
[Result "1-0"]
[WhiteElo "1685"]
[BlackElo "1425"]
[TimeControl "180+2"]
[EndTime "11:13:09 PDT"]
[Termination "Victoria de Kelorian por abandono"]

1. e4 {[%clk 0:03:01.9]} 1... d5 {[%clk 0:02:58.6]} 2. exd5 {[%clk 0:03:01.9]}
2... Qxd5 {[%clk 0:03:00.5]} 3. Nc3 {[%clk 0:03:02.9]} 3... Qa5 {[%clk
0:03:01.7]} 4. Nf3 {[%clk 0:03:02.1]} 4... c6 {[%clk 0:03:00.9]} 5. d4 {[%clk
0:03:01.5]} 5... Bg4 {[%clk 0:02:59.6]} 6. Be2 {[%clk 0:03:01.2]} 6... e6 {[%clk
0:02:58.9]} 7. Bd2 {[%clk 0:03:01.6]} 7... Qc7 {[%clk 0:02:59.2]} 8. h3 {[%clk
0:02:59.9]} 8... Bh5 {[%clk 0:02:59.4]} 9. Ne5 {[%clk 0:02:57.9]} 9... Bxe2
{[%clk 0:02:58.9]} 10. Qxe2 {[%clk 0:02:58.5]} 10... Nf6 {[%clk 0:02:57.9]} 11.
Ng4 {[%clk 0:02:57.1]} 11... Nbd7 {[%clk 0:02:57.8]} 12. Nxf6+ {[%clk 0:02:41]}
12... Nxf6 {[%clk 0:02:56.9]} 13. Ne4 {[%clk 0:02:41.9]} 13... Be7 {[%clk
0:02:57.1]} 14. Nxf6+ {[%clk 0:02:37.1]} 14... Bxf6 {[%clk 0:02:55.4]} 15. c3
{[%clk 0:02:38]} 15... O-O {[%clk 0:02:50.6]} 16. Qg4 {[%clk 0:02:32.3]} 16...
c5 {[%clk 0:02:46.8]} 17. O-O {[%clk 0:02:29.6]} 17... cxd4 {[%clk 0:02:46.7]}
18. cxd4 {[%clk 0:02:29.5]} 18... Qd7 {[%clk 0:02:41.9]} 19. Be3 {[%clk
0:02:27.5]} 19... Rac8 {[%clk 0:02:37]} 20. Rfd1 {[%clk 0:02:25]} 20... Qd5
{[%clk 0:02:31.5]} 21. b3 {[%clk 0:02:22.3]} 21... Rc6 {[%clk 0:02:30.6]} 22.
Rac1 {[%clk 0:02:17.5]} 22... Rfc8 {[%clk 0:02:30.7]} 23. Rxc6 {[%clk
0:02:13.7]} 23... Rxc6 {[%clk 0:02:31.3]} 24. Qg3 {[%clk 0:02:04.8]} 24... Rc8
{[%clk 0:02:14.2]} 25. Qf4 {[%clk 0:01:48]} 25... h6 {[%clk 0:02:05.4]} 26. Qg4
{[%clk 0:01:44]} 26... Kh7 {[%clk 0:02:04.4]} 27. f3 {[%clk 0:01:39]} 27... Rc2
{[%clk 0:01:59.9]} 28. Qe4+ {[%clk 0:01:34.7]} 28... Qf5 {[%clk 0:01:57.4]} 29.
Qxf5+ {[%clk 0:01:31.8]} 29... exf5 {[%clk 0:01:57]} 30. d5 {[%clk 0:01:30.7]}
30... b6 {[%clk 0:01:43.6]} 31. d6 {[%clk 0:01:29.5]} 31... Rc8 {[%clk
0:01:44.2]} 32. d7 {[%clk 0:01:30.1]} 32... Rd8 {[%clk 0:01:36.7]} 33. Bf4
{[%clk 0:01:28.4]} 33... Ra8 {[%clk 0:01:30.3]} 34. Bc7 {[%clk 0:01:25.6]} 34...
Bd8 {[%clk 0:01:29.9]} 35. Bd6 {[%clk 0:01:04]} 35... b5 {[%clk 0:01:17.5]} 36.
b4 {[%clk 0:01:01.3]} 36... Bb6+ {[%clk 0:01:14.5]} 37. Kh2 {[%clk 0:01:00]}
37... Rd8 {[%clk 0:01:13.4]} 38. Be7 {[%clk 0:00:58.5]} 38... Rb8 {[%clk
0:01:05.2]} 39. d8=Q {[%clk 0:00:52]} 39... Bxd8 {[%clk 0:01:04.2]} 40. Rxd8
{[%clk 0:00:51.6]} 40... Rxd8 {[%clk 0:01:01.8]} 41. Bxd8 {[%clk 0:00:52.3]}
41... g5 {[%clk 0:01:02.6]} 42. Kg3 {[%clk 0:00:52.7]} 42... Kg6 {[%clk
0:01:02.5]} 43. f4 {[%clk 0:00:51.7]} 43... f6 {[%clk 0:01:01.6]} 44. Kf3 {[%clk
0:00:50.6]} 44... h5 {[%clk 0:01:01.9]} 45. g4 {[%clk 0:00:45.2]} 45... fxg4+
{[%clk 0:00:59]} 46. hxg4 {[%clk 0:00:45.4]} 46... h4 {[%clk 0:00:59.3]} 47. f5+
{[%clk 0:00:46.3]} 47... Kg7 {[%clk 0:00:58.9]} 48. a3 {[%clk 0:00:41.2]} 48...
a6 {[%clk 0:00:59.6]} 49. Bb6 {[%clk 0:00:39.6]} 49... Kf7 {[%clk 0:00:59.4]}
50. Bd4 {[%clk 0:00:38]} 50... Kg7 {[%clk 0:00:58.1]} 51. Bf2 {[%clk 0:00:35.8]}
51... Kf7 {[%clk 0:00:58.4]} 52. Ke4 {[%clk 0:00:36.7]} 52... Ke7 {[%clk
0:00:57.2]} 53. Kd5 {[%clk 0:00:31.6]} 53... Kd7 {[%clk 0:00:58.1]} 54. Kc5
{[%clk 0:00:32.2]} 54... Kc7 {[%clk 0:00:56.3]} 55. Bg1 {[%clk 0:00:33.1]} 55...
h3 {[%clk 0:00:52.6]} 56. Bh2+ {[%clk 0:00:33.3]} 56... Kb7 {[%clk 0:00:52.1]}
57. Kd6 {[%clk 0:00:33.6]} 57... Kb6 {[%clk 0:00:52.9]} 58. Bg1+ {[%clk
0:00:29.9]} 58... Kb7 {[%clk 0:00:52.9]} 59. Ke6 {[%clk 0:00:30.1]} 59... Kc6
{[%clk 0:00:53.7]} 60. Kxf6 {[%clk 0:00:30.7]} 60... Kd5 {[%clk 0:00:54.8]} 61.
Kxg5 {[%clk 0:00:30.2]} 61... Kc4 {[%clk 0:00:55.8]} 62. f6 {[%clk 0:00:30.8]}
62... Kb3 {[%clk 0:00:57.7]} 63. f7 {[%clk 0:00:31.5]} 63... Kxa3 {[%clk
0:00:59.6]} 64. f8=Q {[%clk 0:00:30.9]} 1

[Event "Torneo Nuevo Centro. Jornada 8"]
[Site "Chess.com"]
[Date "2020.08.07"]
[Round "4"]
[White "Gimenez Saiz, Jose Raul"]
[Black "Castellano López, Javier"]
[Result "1/2-1/2"]
[WhiteElo "1728"]
[BlackElo "1887"]
[TimeControl "180+2"]
[EndTime "11:13:30 PDT"]
[Termination "Tablas por repeticiÃ³n"]

1. d4 {[%clk 0:03:01.9]} 1... d5 {[%clk 0:02:58.7]} 2. e3 {[%clk 0:02:58.8]}
2... Nf6 {[%clk 0:02:59.2]} 3. Bd3 {[%clk 0:03:00.3]} 3... Bg4 {[%clk
0:02:58.3]} 4. f3 {[%clk 0:02:58.9]} 4... Bh5 {[%clk 0:02:59.2]} 5. Ne2 {[%clk
0:02:58.5]} 5... e6 {[%clk 0:02:59.5]} 6. O-O {[%clk 0:02:57.9]} 6... c5 {[%clk
0:03:00.1]} 7. c3 {[%clk 0:02:50.1]} 7... Nc6 {[%clk 0:02:59.2]} 8. Nd2 {[%clk
0:02:47.9]} 8... Bd6 {[%clk 0:02:58.5]} 9. dxc5 {[%clk 0:02:40.9]} 9... Bxc5
{[%clk 0:02:58.5]} 10. Nb3 {[%clk 0:02:40.8]} 10... Bb6 {[%clk 0:02:57.2]} 11.
Nd2 {[%clk 0:02:41.9]} 11... Bxe3+ {[%clk 0:02:57.3]} 12. Kh1 {[%clk 0:02:42]}
12... O-O {[%clk 0:02:55.4]} 13. Nb3 {[%clk 0:02:40.9]} 13... Bxc1 {[%clk
0:02:54.3]} 14. Rxc1 {[%clk 0:02:41.3]} 14... Bg6 {[%clk 0:02:45.8]} 15. Bxg6
{[%clk 0:02:39.4]} 15... hxg6 {[%clk 0:02:47.7]} 16. Nbd4 {[%clk 0:02:38.9]}
16... Rc8 {[%clk 0:02:44.9]} 17. Qd3 {[%clk 0:02:25.5]} 17... Ne5 {[%clk
0:02:39.4]} 18. Qb5 {[%clk 0:02:18.4]} 18... Qb6 {[%clk 0:02:38]} 19. Qxb6
{[%clk 0:02:17.2]} 19... axb6 {[%clk 0:02:39.9]} 20. b3 {[%clk 0:02:10.8]} 20...
Ra8 {[%clk 0:02:40.1]} 21. a4 {[%clk 0:02:09.6]} 21... Rfc8 {[%clk 0:02:36.1]}
22. Nb5 {[%clk 0:02:09.9]} 22... Ne8 {[%clk 0:02:24.3]} 23. Rfd1 {[%clk
0:02:01.9]} 23... Kf8 {[%clk 0:02:20.5]} 24. h4 {[%clk 0:01:58.1]} 24... Ke7
{[%clk 0:02:18.2]} 25. Kg1 {[%clk 0:01:54.1]} 25... Nc7 {[%clk 0:02:18.3]} 26.
Kf2 {[%clk 0:01:50.9]} 26... Nxb5 {[%clk 0:02:16.4]} 27. axb5 {[%clk 0:01:48.9]}
27... Ra2 {[%clk 0:02:17.7]} 28. Ra1 {[%clk 0:01:44.2]} 28... Rca8 {[%clk
0:02:16.8]} 29. Rxa2 {[%clk 0:01:44.5]} 29... Rxa2 {[%clk 0:02:18.7]} 30. Rb1
{[%clk 0:01:32.3]} 30... Kd6 {[%clk 0:01:57.4]} 31. Ke3 {[%clk 0:01:32.5]} 31...
Nd7 {[%clk 0:01:51.3]} 32. c4 {[%clk 0:00:55.9]} 32... dxc4 {[%clk 0:01:32.4]}
33. bxc4 {[%clk 0:00:53.1]} 33... Ne5 {[%clk 0:01:29.5]} 34. Rd1+ {[%clk
0:00:47.5]} 34... Ke7 {[%clk 0:01:24]} 35. g4 {[%clk 0:00:38.8]} 35... Nxc4+
{[%clk 0:01:23.4]} 36. Kd4 {[%clk 0:00:35.3]} 36... Rxe2 {[%clk 0:01:15.5]} 37.
Kxc4 {[%clk 0:00:36.1]} 37... Rf2 {[%clk 0:01:16.2]} 38. Rd3 {[%clk 0:00:36.2]}
38... Rh2 {[%clk 0:01:16.1]} 39. Ra3 {[%clk 0:00:31]} 39... Rxh4 {[%clk
0:01:13.3]} 40. Ra7 {[%clk 0:00:31.7]} 40... f5 {[%clk 0:00:45.9]} 41. Rxb7+
{[%clk 0:00:33.6]} 41... Kd6 {[%clk 0:00:46.6]} 42. Rxb6+ {[%clk 0:00:32.7]}
42... Kc7 {[%clk 0:00:43.7]} 43. Kc5 {[%clk 0:00:32.5]} 43... fxg4 {[%clk
0:00:38.9]} 44. fxg4 {[%clk 0:00:32.4]} 44... Rxg4 {[%clk 0:00:35.3]} 45. Rxe6
{[%clk 0:00:32.9]} 45... Rg5+ {[%clk 0:00:34.4]} 46. Kb4 {[%clk 0:00:33.4]}
46... Kd7 {[%clk 0:00:28.4]} 47. Ra6 {[%clk 0:00:30.3]} 47... Rg4+ {[%clk
0:00:23.3]} 48. Ka5 {[%clk 0:00:30.2]} 48... Kc8 {[%clk 0:00:22.8]} 49. Ra7
{[%clk 0:00:30]} 49... g5 {[%clk 0:00:20.4]} 50. Rxg7 {[%clk 0:00:30.4]} 50...
Rg1 {[%clk 0:00:21.3]} 51. Kb6 {[%clk 0:00:27.6]} 51... g4 {[%clk 0:00:19.5]}
52. Rg8+ {[%clk 0:00:18.6]} 52... Kd7 {[%clk 0:00:19.9]} 53. Rg7+ {[%clk
0:00:12.7]} 53... Kc8 {[%clk 0:00:19.3]} 54. Rg8+ {[%clk 0:00:14]} 54... Kd7
{[%clk 0:00:20.3]} 55. Rg7+ {[%clk 0:00:14.7]} 55... Kc8 {[%clk 0:00:18.1]}
1/2-1